[Event "Early-Titled-Tuesday-Blitz-February-20-2024"]
[Site "Chess.com"]
[Date "2024.02.20"]
[Round "1"]
[White "jodarmarlon1985"]
[Black "ukchessbomber"]
[Result "0-1"]
[WhiteElo "2209"]
[BlackElo "2595"]
[TimeControl "180+1"]
[EndTime "8:07:35 PST"]
[Termination "ukchessbomber won on time"]

1. e4 {[%clk 0:03:00.9]} 1... a6 {[%clk 0:03:00.5]} 2. d4 {[%clk 0:03:00.6]}
2... b6 {[%clk 0:03:00.1]} 3. Bd3 {[%clk 0:03:00.9]} 3... Bb7 {[%clk 0:03:00.3]}
4. Nf3 {[%clk 0:03:01.1]} 4... d5 {[%clk 0:03:01]} 5. e5 {[%clk 0:03:00.2]} 5...
c5 {[%clk 0:03:00.5]} 6. c3 {[%clk 0:03:00.2]} 6... g6 {[%clk 0:03:00.8]} 7. O-O
{[%clk 0:02:59.7]} 7... Bg7 {[%clk 0:03:01.3]} 8. Re1 {[%clk 0:03:00.6]} 8... e6
{[%clk 0:03:01.1]} 9. Bg5 {[%clk 0:02:56.7]} 9... Ne7 {[%clk 0:03:01]} 10. Nbd2
{[%clk 0:02:56.3]} 10... Nbc6 {[%clk 0:02:57.6]} 11. a3 {[%clk 0:02:55.9]} 11...
h6 {[%clk 0:02:57.3]} 12. Be3 {[%clk 0:02:51.8]} 12... O-O {[%clk 0:02:55.5]}
13. dxc5 {[%clk 0:02:42.1]} 13... Nxe5 {[%clk 0:02:55.6]} 14. Nxe5 {[%clk
0:02:40.1]} 14... Bxe5 {[%clk 0:02:56.5]} 15. Bxh6 {[%clk 0:02:23.8]} 15... Bg7
{[%clk 0:02:56.6]} 16. Bxg7 {[%clk 0:02:20.5]} 16... Kxg7 {[%clk 0:02:57.5]} 17.
cxb6 {[%clk 0:02:13.4]} 17... Qxb6 {[%clk 0:02:57.9]} 18. Qb3 {[%clk 0:02:05.3]}
18... Qc7 {[%clk 0:02:58.1]} 19. Nf3 {[%clk 0:01:59.6]} 19... Rab8 {[%clk
0:02:39.9]} 20. Qc2 {[%clk 0:01:34.1]} 20... Rh8 {[%clk 0:02:39.2]} 21. h3
{[%clk 0:01:24.4]} 21... Rh6 {[%clk 0:02:15.8]} 22. Qe2 {[%clk 0:01:19.5]} 22...
Qb6 {[%clk 0:02:00.2]} 23. Ne5 {[%clk 0:01:15.9]} 23... Rbh8 {[%clk 0:01:38]}
24. Nd7 {[%clk 0:00:59.7]} 24... Qd6 {[%clk 0:01:36.7]} 25. Qe5+ {[%clk
0:00:59.2]} 25... Qxe5 {[%clk 0:01:37.1]} 26. Nxe5 {[%clk 0:00:59.3]} 26... g5
{[%clk 0:01:36.9]} 27. b4 {[%clk 0:00:37.3]} 27... Nf5 {[%clk 0:01:22.1]} 28. a4
{[%clk 0:00:19.5]} 28... d4 {[%clk 0:01:22]} 29. c4 {[%clk 0:00:11.9]} 29... Rh4
{[%clk 0:00:34.7]} 30. b5 {[%clk 0:00:10.7]} 30... Nh6 {[%clk 0:00:28.2]} 31. f3
{[%clk 0:00:09.3]} 31... Rc8 {[%clk 0:00:19.9]} 32. Rac1 {[%clk 0:00:06.9]}
32... Rc5 {[%clk 0:00:18.8]} 33. Be4 {[%clk 0:00:01.7]} 33... Bxe4 {[%clk
0:00:16.7]} 34. Rxe4 {[%clk 0:00:01.3]} 34... Rxe4 {[%clk 0:00:17.1]} 35. fxe4
{[%clk 0:00:02.2]} 35... Rxe5 {[%clk 0:00:17.7]} 36. c5 {[%clk 0:00:02.4]} 36...
d3 {[%clk 0:00:15]} 37. c6 {[%clk 0:00:02.3]} 37... axb5 {[%clk 0:00:13.8]} 38.
axb5 {[%clk 0:00:02]} 38... d2 {[%clk 0:00:12.2]} 39. Rd1 {[%clk 0:00:02.2]}
39... Rxb5 {[%clk 0:00:12.2]} 40. Rxd2 {[%clk 0:00:02.4]} 40... Rc5 {[%clk
0:00:12.1]} 41. Rd6 {[%clk 0:00:02.5]} 41... Ng8 {[%clk 0:00:11.8]} 42. Kf2
{[%clk 0:00:02.6]} 42... Ne7 {[%clk 0:00:12.4]} 43. Ke3 {[%clk 0:00:02.9]} 43...
Nxc6 {[%clk 0:00:12.4]} 44. g3 {[%clk 0:00:01.3]} 44... Rc3+ {[%clk 0:00:12.4]}
0-1

[Event "Early-Titled-Tuesday-Blitz-February-20-2024"]
[Site "Chess.com"]
[Date "2024.02.20"]
[Round "1"]
[White "Grischuk"]
[Black "Shuvalov"]
[Result "1-0"]
[WhiteElo "3106"]
[BlackElo "2537"]
[TimeControl "180+1"]
[EndTime "8:07:38 PST"]
[Termination "Grischuk won by resignation"]

1. d4 {[%clk 0:03:00.9]} 1... Nf6 {[%clk 0:02:59.4]} 2. c4 {[%clk 0:03:00.7]}
2... g6 {[%clk 0:02:59]} 3. g3 {[%clk 0:03:00.7]} 3... c5 {[%clk 0:02:54.8]} 4.
Nf3 {[%clk 0:02:56.6]} 4... cxd4 {[%clk 0:02:52.8]} 5. Nxd4 {[%clk 0:02:56]}
5... d5 {[%clk 0:02:51.9]} 6. Bg2 {[%clk 0:02:31.6]} 6... dxc4 {[%clk
0:02:46.3]} 7. O-O {[%clk 0:02:21.8]} 7... Bg7 {[%clk 0:02:45.9]} 8. Qa4+ {[%clk
0:02:22.2]} 8... Bd7 {[%clk 0:02:37.7]} 9. Qxc4 {[%clk 0:02:20.7]} 9... Nc6
{[%clk 0:02:38.3]} 10. Nxc6 {[%clk 0:02:19.2]} 10... bxc6 {[%clk 0:02:34.3]} 11.
Nc3 {[%clk 0:02:15]} 11... O-O {[%clk 0:02:33.5]} 12. Rd1 {[%clk 0:02:15.6]}
12... Qb6 {[%clk 0:02:12.6]} 13. Na4 {[%clk 0:02:13.6]} 13... Qa5 {[%clk
0:01:58.9]} 14. Nc5 {[%clk 0:02:09.7]} 14... Bf5 {[%clk 0:01:30.5]} 15. b4
{[%clk 0:01:45.2]} 15... Qc7 {[%clk 0:01:14.8]} 16. Bf4 {[%clk 0:01:44]} 16...
e5 {[%clk 0:01:13.9]} 17. Bg5 {[%clk 0:01:38.4]} 17... Rad8 {[%clk 0:01:01.5]}
18. Na6 {[%clk 0:01:24]} 18... Qb6 {[%clk 0:00:57]} 19. Qxc6 {[%clk 0:01:15.6]}
19... Rxd1+ {[%clk 0:00:44]} 20. Rxd1 {[%clk 0:01:14.8]} 20... Qxc6 {[%clk
0:00:37.3]} 21. Bxc6 {[%clk 0:01:14.3]} 21... Ne4 {[%clk 0:00:38.1]} 22. Be3
{[%clk 0:00:51]} 22... Nc3 {[%clk 0:00:34.1]} 23. Rd2 {[%clk 0:00:45.6]} 23...
Nxe2+ {[%clk 0:00:21.2]} 24. Rxe2 {[%clk 0:00:43.3]} 24... Bd3 {[%clk
0:00:21.8]} 25. Rd2 {[%clk 0:00:36.4]} 25... Bxa6 {[%clk 0:00:22.3]} 26. b5
{[%clk 0:00:36.3]} 26... Bc8 {[%clk 0:00:21]} 27. Bc5 {[%clk 0:00:28.1]} 27...
Be6 {[%clk 0:00:17.2]} 28. Bxf8 {[%clk 0:00:27.2]} 28... Bxf8 {[%clk 0:00:18.1]}
29. a4 {[%clk 0:00:25]} 29... Kg7 {[%clk 0:00:18.2]} 30. a5 {[%clk 0:00:19]}
30... Bb4 {[%clk 0:00:18.6]} 31. b6 {[%clk 0:00:17.7]} 31... axb6 {[%clk
0:00:17.5]} 32. a6 {[%clk 0:00:17.9]} 32... Bxd2 {[%clk 0:00:17.3]} 33. a7
{[%clk 0:00:18.2]} 33... Bb4 {[%clk 0:00:16.7]} 34. a8=Q {[%clk 0:00:18.6]}
34... Bc5 {[%clk 0:00:17.2]} 35. Bd5 {[%clk 0:00:19]} 35... Bxd5 {[%clk
0:00:16.4]} 36. Qxd5 {[%clk 0:00:19.9]} 36... Bd4 {[%clk 0:00:17.3]} 37. Kg2
{[%clk 0:00:19.7]} 37... h5 {[%clk 0:00:17.3]} 38. f4 {[%clk 0:00:19.8]} 38...
Kf6 {[%clk 0:00:16.7]} 39. Kf3 {[%clk 0:00:19.3]} 39... e4+ {[%clk 0:00:12.7]}
40. Kxe4 {[%clk 0:00:18.7]} 40... Bc5 {[%clk 0:00:13.6]} 41. Qc6+ {[%clk
0:00:17.8]} 41... Kg7 {[%clk 0:00:13.2]} 42. f5 {[%clk 0:00:17.7]} 42... gxf5+
{[%clk 0:00:11.9]} 43. Kxf5 {[%clk 0:00:17.8]} 43... Bd4 {[%clk 0:00:11.5]} 44.
Qd6 {[%clk 0:00:18]} 44... Bc5 {[%clk 0:00:11.4]} 45. Qf6+ {[%clk 0:00:17.9]}
45... Kg8 {[%clk 0:00:11.7]} 46. Qg5+ {[%clk 0:00:18]} 46... Kf8 {[%clk
0:00:11.5]} 47. Qxh5 {[%clk 0:00:18.6]} 47... Kg7 {[%clk 0:00:11.7]} 48. Qg5+
{[%clk 0:00:18.5]} 48... Kf8 {[%clk 0:00:11.8]} 49. h4 {[%clk 0:00:19.4]} 1-0

[Event "Early-Titled-Tuesday-Blitz-February-20-2024"]
[Site "Chess.com"]
[Date "2024.02.20"]
[Round "1"]
[White "GOGIEFF"]
[Black "Journey_to_GrandMaster_YT"]
[Result "1-0"]
[WhiteElo "3027"]
[BlackElo "2525"]
[TimeControl "180+1"]
[EndTime "8:07:38 PST"]
[Termination "GOGIEFF won by resignation"]

1. d4 {[%clk 0:03:00.9]} 1... d6 {[%clk 0:02:56.5]} 2. Nf3 {[%clk 0:03:00.1]}
2... Nf6 {[%clk 0:02:55.9]} 3. c4 {[%clk 0:03:00.3]} 3... Nbd7 {[%clk
0:02:56.1]} 4. Nc3 {[%clk 0:03:01.2]} 4... e5 {[%clk 0:02:56.4]} 5. e4 {[%clk
0:03:01.3]} 5... Be7 {[%clk 0:02:56.3]} 6. Be2 {[%clk 0:03:01.5]} 6... O-O
{[%clk 0:02:56.5]} 7. O-O {[%clk 0:03:01.6]} 7... c6 {[%clk 0:02:56.8]} 8. Qc2
{[%clk 0:03:01.9]} 8... Qc7 {[%clk 0:02:41.8]} 9. Bg5 {[%clk 0:02:55.7]} 9...
Re8 {[%clk 0:02:41.1]} 10. Rfd1 {[%clk 0:02:47.1]} 10... a6 {[%clk 0:02:39.7]}
11. Rac1 {[%clk 0:02:46]} 11... b5 {[%clk 0:02:26.6]} 12. cxb5 {[%clk
0:02:43.2]} 12... cxb5 {[%clk 0:02:26.5]} 13. Nd5 {[%clk 0:02:20.4]} 13... Nxd5
{[%clk 0:02:07.7]} 14. Qxc7 {[%clk 0:02:19.3]} 14... Nxc7 {[%clk 0:02:07.3]} 15.
Rxc7 {[%clk 0:02:20.2]} 15... Bxg5 {[%clk 0:01:47.4]} 16. Nxg5 {[%clk
0:02:21.1]} 16... h6 {[%clk 0:01:39.5]} 17. Nf3 {[%clk 0:02:16.1]} 17... exd4
{[%clk 0:01:38.3]} 18. Nxd4 {[%clk 0:02:03.6]} 18... Nf6 {[%clk 0:01:34.4]} 19.
f3 {[%clk 0:01:47.5]} 19... d5 {[%clk 0:01:31.4]} 20. e5 {[%clk 0:01:36.4]}
20... Rxe5 {[%clk 0:01:23.8]} 21. Kf2 {[%clk 0:01:24.6]} 21... Re8 {[%clk
0:01:13.2]} 22. Rdc1 {[%clk 0:01:21.8]} 22... Be6 {[%clk 0:01:10.7]} 23. b4
{[%clk 0:01:18.9]} 23... Red8 {[%clk 0:00:50.8]} 24. a3 {[%clk 0:01:09.9]} 24...
Ne8 {[%clk 0:00:50.1]} 25. Nxe6 {[%clk 0:00:55.7]} 25... fxe6 {[%clk 0:00:46]}
26. Re7 {[%clk 0:00:56.2]} 26... Rd6 {[%clk 0:00:33.5]} 27. Bd3 {[%clk 0:00:55]}
27... Kf8 {[%clk 0:00:20.6]} 28. Rb7 {[%clk 0:00:54.6]} 28... Rad8 {[%clk
0:00:20.8]} 29. Bg6 {[%clk 0:00:49]} 29... R8d7 {[%clk 0:00:15.6]} 30. Rxd7
{[%clk 0:00:43]} 30... Rxd7 {[%clk 0:00:15.9]} 31. Rc8 {[%clk 0:00:43.5]} 31...
Re7 {[%clk 0:00:16.3]} 32. Ra8 {[%clk 0:00:39]} 32... e5 {[%clk 0:00:15.7]} 33.
h4 {[%clk 0:00:39.1]} 33... Re6 {[%clk 0:00:15]} 34. h5 {[%clk 0:00:39.4]} 34...
d4 {[%clk 0:00:08.3]} 35. Ke2 {[%clk 0:00:37.6]} 35... Re7 {[%clk 0:00:06.7]}
36. Kd3 {[%clk 0:00:37.5]} 36... Re6 {[%clk 0:00:06.6]} 37. g3 {[%clk
0:00:37.4]} 37... Re7 {[%clk 0:00:06.5]} 38. f4 {[%clk 0:00:36.8]} 38... exf4
{[%clk 0:00:06.2]} 39. gxf4 {[%clk 0:00:37.7]} 39... Re1 {[%clk 0:00:06]} 40.
Kxd4 {[%clk 0:00:36.6]} 40... Re6 {[%clk 0:00:05.7]} 41. Kc5 {[%clk 0:00:35.1]}
41... Re3 {[%clk 0:00:04.5]} 42. f5 {[%clk 0:00:31.9]} 42... Re5+ {[%clk
0:00:03.9]} 43. Kb6 {[%clk 0:00:31.7]} 43... Re3 {[%clk 0:00:04.2]} 44. Rxe8+
{[%clk 0:00:30]} 44... Rxe8 {[%clk 0:00:03.6]} 45. Bxe8 {[%clk 0:00:30.9]} 45...
Kxe8 {[%clk 0:00:04.4]} 46. Kxa6 {[%clk 0:00:31.7]} 46... Ke7 {[%clk 0:00:04.8]}
47. Kxb5 {[%clk 0:00:32.4]} 47... Kf6 {[%clk 0:00:05.7]} 48. Kc6 {[%clk
0:00:33]} 48... Kxf5 {[%clk 0:00:06.6]} 49. b5 {[%clk 0:00:33.6]} 49... g5
{[%clk 0:00:07.4]} 50. hxg6 {[%clk 0:00:33.8]} 50... Kxg6 {[%clk 0:00:07.3]} 51.
b6 {[%clk 0:00:34.3]} 51... h5 {[%clk 0:00:08.2]} 52. b7 {[%clk 0:00:34.7]}
52... h4 {[%clk 0:00:09]} 53. b8=Q {[%clk 0:00:35.2]} 53... h3 {[%clk
0:00:09.7]} 54. Qh2 {[%clk 0:00:35.5]} 1-0

[Event "Early-Titled-Tuesday-Blitz-February-20-2024"]
[Site "Chess.com"]
[Date "2024.02.20"]
[Round "1"]
[White "shimastream"]
[Black "bilosuvenosu06"]
[Result "1-0"]
[WhiteElo "2978"]
[BlackElo "2520"]
[TimeControl "180+1"]
[EndTime "8:07:40 PST"]
[Termination "shimastream won by resignation"]

1. f4 {[%clk 0:02:50.5]} 1... d5 {[%clk 0:02:59.3]} 2. Nf3 {[%clk 0:02:50.1]}
2... Nf6 {[%clk 0:02:57]} 3. e3 {[%clk 0:02:50]} 3... Nbd7 {[%clk 0:02:56.5]} 4.
b3 {[%clk 0:02:49.6]} 4... g6 {[%clk 0:02:56.5]} 5. Bb2 {[%clk 0:02:49.6]} 5...
Bg7 {[%clk 0:02:56.8]} 6. Be2 {[%clk 0:02:49.3]} 6... O-O {[%clk 0:02:56.8]} 7.
O-O {[%clk 0:02:49.7]} 7... c5 {[%clk 0:02:55.5]} 8. c4 {[%clk 0:02:45.2]} 8...
dxc4 {[%clk 0:02:54.1]} 9. bxc4 {[%clk 0:02:45.3]} 9... b6 {[%clk 0:02:53.1]}
10. Qc2 {[%clk 0:02:39.1]} 10... Bb7 {[%clk 0:02:49.6]} 11. Nc3 {[%clk
0:02:38.9]} 11... a6 {[%clk 0:02:44.7]} 12. Rad1 {[%clk 0:02:38.3]} 12... Rc8
{[%clk 0:02:44.7]} 13. h3 {[%clk 0:02:31.9]} 13... Qc7 {[%clk 0:02:44.5]} 14. d3
{[%clk 0:02:19.6]} 14... Rfd8 {[%clk 0:02:44]} 15. a4 {[%clk 0:02:12.2]} 15...
Nb8 {[%clk 0:02:40.8]} 16. Ne5 {[%clk 0:02:09.4]} 16... Nc6 {[%clk 0:02:39.8]}
17. Nxc6 {[%clk 0:02:09.4]} 17... Bxc6 {[%clk 0:02:40.7]} 18. Bf3 {[%clk
0:02:08.8]} 18... Bxf3 {[%clk 0:02:40.3]} 19. Rxf3 {[%clk 0:02:09.7]} 19... Rd7
{[%clk 0:02:39.7]} 20. Rf2 {[%clk 0:02:05.7]} 20... Rcd8 {[%clk 0:02:39.3]} 21.
Rfd2 {[%clk 0:02:03.3]} 21... Qc6 {[%clk 0:02:39]} 22. Qb3 {[%clk 0:01:59.3]}
22... e6 {[%clk 0:02:34.9]} 23. a5 {[%clk 0:01:51.5]} 23... bxa5 {[%clk
0:02:32.6]} 24. Qa4 {[%clk 0:01:49.8]} 24... Qc7 {[%clk 0:02:25.3]} 25. Qa3
{[%clk 0:01:37.3]} 25... Ne8 {[%clk 0:02:19.7]} 26. Na4 {[%clk 0:01:35]} 26...
Bxb2 {[%clk 0:02:16.6]} 27. Rxb2 {[%clk 0:01:34]} 27... Nd6 {[%clk 0:02:14.7]}
28. Rc2 {[%clk 0:01:17.6]} 28... Nb7 {[%clk 0:02:13.6]} 29. Rb2 {[%clk 0:01:02]}
29... Nd6 {[%clk 0:02:12.5]} 30. Rc2 {[%clk 0:01:02.1]} 30... Nb7 {[%clk
0:02:12.1]} 31. Qc3 {[%clk 0:00:59.6]} 31... Qc6 {[%clk 0:02:11.3]} 32. Ra2
{[%clk 0:00:55.8]} 32... Nd6 {[%clk 0:02:08.9]} 33. Rdd2 {[%clk 0:00:45]} 33...
Nb7 {[%clk 0:02:07.1]} 34. Kf2 {[%clk 0:00:44.2]} 34... Rd6 {[%clk 0:02:03.8]}
35. Ra3 {[%clk 0:00:39.4]} 35... R8d7 {[%clk 0:02:03.5]} 36. Qe5 {[%clk
0:00:38.3]} 36... Qc7 {[%clk 0:01:59.6]} 37. Qb2 {[%clk 0:00:27.9]} 37... Qd8
{[%clk 0:01:59.6]} 38. Qc2 {[%clk 0:00:27.6]} 38... f6 {[%clk 0:01:58]} 39. Ke2
{[%clk 0:00:26.5]} 39... e5 {[%clk 0:01:58.1]} 40. fxe5 {[%clk 0:00:26.4]} 40...
fxe5 {[%clk 0:01:59]} 41. Nc3 {[%clk 0:00:27.1]} 41... Qg5 {[%clk 0:01:55.7]}
42. g4 {[%clk 0:00:17.4]} 42... Qh4 {[%clk 0:01:55.4]} 43. Ne4 {[%clk
0:00:17.5]} 43... Rc6 {[%clk 0:01:54.7]} 44. Qb2 {[%clk 0:00:14.4]} 44... Qxh3
{[%clk 0:01:53.9]} 45. Qxe5 {[%clk 0:00:14.3]} 45... Qxg4+ {[%clk 0:01:54.1]}
46. Ke1 {[%clk 0:00:14.7]} 46... Qe6 {[%clk 0:01:53.6]} 47. Qxe6+ {[%clk
0:00:05.7]} 47... Rxe6 {[%clk 0:01:54.5]} 48. Ke2 {[%clk 0:00:05.7]} 48... Rde7
{[%clk 0:01:54.3]} 49. Rb2 {[%clk 0:00:05.6]} 49... Kf8 {[%clk 0:01:52.3]} 50.
Rab3 {[%clk 0:00:05.5]} 50... Nd6 {[%clk 0:01:51]} 51. Nxc5 {[%clk 0:00:05.2]}
51... Rxe3+ {[%clk 0:01:51]} 52. Kd2 {[%clk 0:00:05.9]} 52... Rf3 {[%clk
0:01:49.1]} 53. Kc3 {[%clk 0:00:05.6]} 53... Ree3 {[%clk 0:01:46.4]} 54. Rb6
{[%clk 0:00:06.1]} 54... Nf5 {[%clk 0:01:33.3]} 55. Rxa6 {[%clk 0:00:06.3]}
55... Ng3 {[%clk 0:01:32.3]} 56. Rb7 {[%clk 0:00:05.1]} 56... Ne2+ {[%clk
0:01:24.8]} 57. Kd2 {[%clk 0:00:04.9]} 57... Rf7 {[%clk 0:01:16.2]} 58. Rb8+
{[%clk 0:00:02.3]} 58... Kg7 {[%clk 0:01:16.6]} 59. Kxe3 {[%clk 0:00:02.2]}
59... Ng3 {[%clk 0:01:17]} 60. Kd2 {[%clk 0:00:02.1]} 60... Nf5 {[%clk
0:01:17.2]} 61. Kc3 {[%clk 0:00:02.4]} 61... Rd7 {[%clk 0:01:17.5]} 62. Ne6+
{[%clk 0:00:02.5]} 62... Kf6 {[%clk 0:01:17.8]} 63. Nc5+ {[%clk 0:00:02.4]}
63... Rd6 {[%clk 0:01:18.4]} 64. Ne4+ {[%clk 0:00:02.9]} 64... Ke5 {[%clk
0:01:19]} 65. Nxd6 {[%clk 0:00:03.8]} 65... Nxd6 {[%clk 0:01:19.9]} 66. Rb5+
{[%clk 0:00:03.3]} 66... Nxb5+ {[%clk 0:01:20.2]} 67. cxb5 {[%clk 0:00:04.2]}
67... h5 {[%clk 0:01:20.8]} 68. b6 {[%clk 0:00:04.6]} 68... h4 {[%clk
0:01:21.7]} 69. b7 {[%clk 0:00:05.1]} 69... h3 {[%clk 0:01:22.6]} 70. b8=Q+
{[%clk 0:00:05.1]} 70... Kd5 {[%clk 0:01:23.5]} 71. Qg3 {[%clk 0:00:05.3]} 1-0

[Event "Early-Titled-Tuesday-Blitz-February-20-2024"]
[Site "Chess.com"]
[Date "2024.02.20"]
[Round "1"]
[White "Viktor_Poddubnyi"]
[Black "gshwbedhkhd"]
[Result "1-0"]
[WhiteElo "2296"]
[BlackElo "2620"]
[TimeControl "180+1"]
[EndTime "8:07:40 PST"]
[Termination "Viktor_Poddubnyi won on time"]

1. e4 {[%clk 0:03:00.9]} 1... c5 {[%clk 0:02:59.3]} 2. Nf3 {[%clk 0:03:00.4]}
2... e6 {[%clk 0:02:58.7]} 3. g3 {[%clk 0:02:58.9]} 3... Nc6 {[%clk 0:02:55.7]}
4. Bg2 {[%clk 0:02:59.1]} 4... Nf6 {[%clk 0:02:56.3]} 5. e5 {[%clk 0:02:59.3]}
5... Nd5 {[%clk 0:02:55.7]} 6. O-O {[%clk 0:02:58.2]} 6... d6 {[%clk 0:02:55.6]}
7. d4 {[%clk 0:02:58.8]} 7... cxd4 {[%clk 0:02:54.9]} 8. exd6 {[%clk 0:02:59.5]}
8... Bxd6 {[%clk 0:02:54.4]} 9. Nxd4 {[%clk 0:03:00.2]} 9... O-O {[%clk
0:02:48.6]} 10. Nxc6 {[%clk 0:02:58.8]} 10... bxc6 {[%clk 0:02:49.5]} 11. c4
{[%clk 0:02:58.9]} 11... Ne7 {[%clk 0:02:48.3]} 12. Nc3 {[%clk 0:02:55.1]} 12...
Rb8 {[%clk 0:02:44.4]} 13. b3 {[%clk 0:02:54.7]} 13... Be5 {[%clk 0:02:30.7]}
14. Bb2 {[%clk 0:02:44]} 14... c5 {[%clk 0:02:26.8]} 15. Qe2 {[%clk 0:02:13.7]}
15... Bd4 {[%clk 0:02:14.7]} 16. Rfd1 {[%clk 0:01:57.6]} 16... Bb7 {[%clk
0:02:09.9]} 17. Nb5 {[%clk 0:01:49.5]} 17... Bxg2 {[%clk 0:02:05.8]} 18. Nxd4
{[%clk 0:01:42.5]} 18... Qc7 {[%clk 0:01:50.9]} 19. Nxe6 {[%clk 0:01:05.7]}
19... fxe6 {[%clk 0:01:25.6]} 20. Qxe6+ {[%clk 0:01:01.3]} 20... Rf7 {[%clk
0:01:19.3]} 21. Kxg2 {[%clk 0:01:01.2]} 21... Nc6 {[%clk 0:01:18.6]} 22. Rd2
{[%clk 0:00:50.2]} 22... Rf8 {[%clk 0:01:10.1]} 23. Rad1 {[%clk 0:00:46]} 23...
Kh8 {[%clk 0:00:55.8]} 24. f4 {[%clk 0:00:34.8]} 24... Re7 {[%clk 0:00:36.9]}
25. Qd6 {[%clk 0:00:35.2]} 25... Qb7 {[%clk 0:00:35.2]} 26. Kg1 {[%clk
0:00:35.9]} 26... Rfe8 {[%clk 0:00:29.2]} 27. Qxc5 {[%clk 0:00:29.1]} 27... Nb4
{[%clk 0:00:22.2]} 28. Rd8 {[%clk 0:00:20.5]} 28... Nc2 {[%clk 0:00:14.2]} 29.
Rxe8+ {[%clk 0:00:17.4]} 29... Rxe8 {[%clk 0:00:15.1]} 30. Qe5 {[%clk
0:00:14.2]} 30... Qb6+ {[%clk 0:00:11.5]} 31. c5 {[%clk 0:00:11.4]} 31... Rxe5
{[%clk 0:00:05.3]} 32. cxb6 {[%clk 0:00:09.8]} 32... Re8 {[%clk 0:00:05.5]} 33.
bxa7 {[%clk 0:00:08.8]} 33... Kg8 {[%clk 0:00:05]} 34. Rc1 {[%clk 0:00:08.6]}
34... Nb4 {[%clk 0:00:05.2]} 35. Bd4 {[%clk 0:00:07.8]} 35... Nd3 {[%clk
0:00:04.4]} 36. Rc7 {[%clk 0:00:07.8]} 36... Re1+ {[%clk 0:00:03]} 37. Kg2
{[%clk 0:00:07.3]} 37... Re2+ {[%clk 0:00:03.7]} 38. Kf3 {[%clk 0:00:07.1]}
38... Rxa2 {[%clk 0:00:04.3]} 39. Rc8+ {[%clk 0:00:06.5]} 39... Kf7 {[%clk
0:00:03.9]} 40. a8=Q {[%clk 0:00:07.2]} 40... Rxa8 {[%clk 0:00:02.4]} 41. Rxa8
{[%clk 0:00:08.1]} 1-0

[Event "Early-Titled-Tuesday-Blitz-February-20-2024"]
[Site "Chess.com"]
[Date "2024.02.20"]
[Round "1"]
[White "ChEsper99"]
[Black "jaskol95"]
[Result "0-1"]
[WhiteElo "2181"]
[BlackElo "2580"]
[TimeControl "180+1"]
[EndTime "8:07:40 PST"]
[Termination "jaskol95 won by resignation"]

1. e4 {[%clk 0:03:00.9]} 1... e6 {[%clk 0:02:59]} 2. d4 {[%clk 0:03:00.7]} 2...
d5 {[%clk 0:02:59.3]} 3. Nd2 {[%clk 0:03:00.7]} 3... Nf6 {[%clk 0:02:58.1]} 4.
e5 {[%clk 0:03:00.9]} 4... Nfd7 {[%clk 0:02:58.8]} 5. Bd3 {[%clk 0:03:01.5]}
5... c5 {[%clk 0:02:59.5]} 6. c3 {[%clk 0:03:02.2]} 6... Nc6 {[%clk 0:03:00.1]}
7. Ne2 {[%clk 0:03:02.7]} 7... cxd4 {[%clk 0:03:00.7]} 8. cxd4 {[%clk
0:03:03.3]} 8... f6 {[%clk 0:03:01.2]} 9. exf6 {[%clk 0:03:02.9]} 9... Nxf6
{[%clk 0:03:01.6]} 10. O-O {[%clk 0:03:02.5]} 10... Bd6 {[%clk 0:03:02.2]} 11.
Nf3 {[%clk 0:03:02.9]} 11... Qc7 {[%clk 0:03:02.5]} 12. h3 {[%clk 0:03:02.9]}
12... O-O {[%clk 0:02:59.2]} 13. Be3 {[%clk 0:03:02.9]} 13... a6 {[%clk
0:02:52.9]} 14. Re1 {[%clk 0:03:01.9]} 14... Bd7 {[%clk 0:02:48.6]} 15. Rc1
{[%clk 0:03:02]} 15... Be8 {[%clk 0:02:41.1]} 16. Ng5 {[%clk 0:02:44.6]} 16...
Qe7 {[%clk 0:02:14.6]} 17. f4 {[%clk 0:02:29.4]} 17... h6 {[%clk 0:01:41.7]} 18.
Nf3 {[%clk 0:02:29]} 18... Bh5 {[%clk 0:01:25.4]} 19. g4 {[%clk 0:02:29]} 19...
Bxg4 {[%clk 0:01:11.1]} 20. hxg4 {[%clk 0:02:29.2]} 20... Nxg4 {[%clk 0:01:12]}
21. Qd2 {[%clk 0:01:29.3]} 21... Qf7 {[%clk 0:00:55.3]} 22. Ne5 {[%clk
0:00:58.4]} 22... Bxe5 {[%clk 0:00:46]} 23. dxe5 {[%clk 0:00:39.9]} 23... Qh5
{[%clk 0:00:40.4]} 24. Ng3 {[%clk 0:00:37.9]} 24... Qh4 {[%clk 0:00:40.8]} 25.
Qg2 {[%clk 0:00:34.5]} 25... Nxe3 {[%clk 0:00:35.1]} 26. Rxe3 {[%clk 0:00:34.1]}
26... Rxf4 {[%clk 0:00:34.8]} 27. Rf1 {[%clk 0:00:25.3]} 27... Raf8 {[%clk
0:00:31.4]} 28. Ref3 {[%clk 0:00:20]} 28... Nxe5 {[%clk 0:00:26.2]} 29. Rxf4
{[%clk 0:00:14.4]} 29... Rxf4 {[%clk 0:00:27.1]} 30. Rxf4 {[%clk 0:00:14.6]}
30... Qxf4 {[%clk 0:00:28]} 31. Be2 {[%clk 0:00:11.4]} 31... Qd4+ {[%clk
0:00:20.6]} 32. Kh1 {[%clk 0:00:09.5]} 32... Qxb2 {[%clk 0:00:16.9]} 33. Nh5
{[%clk 0:00:07.4]} 33... Nf7 {[%clk 0:00:12.1]} 34. Nf4 {[%clk 0:00:07]} 34...
Qf6 {[%clk 0:00:11]} 35. Qg4 {[%clk 0:00:03.4]} 35... Ng5 {[%clk 0:00:09.8]} 36.
Bd3 {[%clk 0:00:02.4]} 36... Qa1+ {[%clk 0:00:09.3]} 37. Kg2 {[%clk 0:00:02.4]}
37... Qxa2+ {[%clk 0:00:09.7]} 38. Kg3 {[%clk 0:00:03.1]} 38... d4 {[%clk
0:00:05]} 39. Nxe6 {[%clk 0:00:02.9]} 39... Qxe6 {[%clk 0:00:04.6]} 40. Qxd4
{[%clk 0:00:02.8]} 40... Kf7 {[%clk 0:00:03.3]} 41. Qb6 {[%clk 0:00:02.3]} 41...
Qxb6 {[%clk 0:00:02.9]} 0-1